bitfinex-derivatives/quotes_SOLF0:USTF0_20260215
["timestamp","ask_amount","ask_price","bid_price","bid_amount"]
[1771173010761,3.34557587,87.48,87.434,10.2991]
[1771173011360,3.34557587,87.48,87.438,22.43088849]
[1771173013067,3.34557587,87.48,87.441,22.32363086]
[1771173013560,0.19914591,87.54,87.45,3.34557587]
[1771173013764,0.25897624,87.499,87.451,22.29371569]
[1771173014166,0.25897624,87.499,87.461,22.29371569]
[1771173015758,0.25897624,87.499,87.462,10.2957]
[1771173015961,0.25897624,87.499,87.462,32.41686199]
[1771173017866,0.25897624,87.499,87.463,22.11650689]
[1771173018064,4.03123206,87.51,87.463,22.11650689]
[1771173018269,0.68565619,87.509,87.463,22.11650689]
[1771173019467,0.72650217,87.507,87.463,22.11650689]
[1771173020572,10.291,87.504,87.463,22.11650689]
[1771173020771,11.06591153,87.504,87.463,22.11650689]
[1771173020972,3.34557587,87.51,87.463,22.11650689]
[1771173021174,0.77491153,87.507,87.464,22.09786797]
[1771173022771,10.87635266,87.506,87.464,22.09786797]
[1771173022972,0.58575266,87.499,87.451,22.20958413]
[1771173023573,174.14,87.523,87.451,22.20958413]
[1771173023574,0.60235009,87.488,87.451,22.20958413]
[1771173023869,3.34557587,87.47,87.439,22.27014517]
[1771173024067,0.48122801,87.479,87.439,22.27014517]
[1771173024373,0.48122801,87.478,87.439,22.27014517]
[1771173024779,10.2951,87.468,87.426,22.26739345]
[1771173028180,0.46398976,87.464,87.426,22.26739345]
[1771173029078,10.2961,87.46,87.426,22.26739345]
[1771173029277,0.48503613,87.459,87.413,22.30857803]
[1771173030877,10.2963,87.458,87.413,22.30857803]
[1771173032579,10.2939,87.478,87.431,22.32198752]
[1771173033287,10.2939,87.478,87.441,22.31948398]
[1771173033489,0.52475295,87.496,87.45,25.66505985]
[1771173033881,0.16902471,87.509,87.461,22.50478696]
[1771173034083,10.2891,87.519,87.47,3.34557587]
[1771173034279,10.2891,87.519,87.471,22.50478696]
[1771173035389,10.47748887,87.519,87.471,22.50478696]
[1771173036278,0.54595293,87.518,87.471,22.50478696]
[1771173036481,3.34557587,87.51,87.471,22.50478696]
[1771173038986,0.59111102,87.499,87.455,22.32966873]
[1771173040290,0.37872841,87.496,87.455,22.32966873]
[1771173040592,0.37872841,87.489,87.441,22.44281453]
[1771173042089,0.37872841,87.489,87.443,10.298]
[1771173042288,0.37872841,87.489,87.444,22.43004498]
[1771173044681,3.34557587,87.48,87.444,22.43004498]
[1771173044886,0.4894058,87.479,87.43,32.74479078]
[1771173045087,3.34557587,87.47,87.431,22.44529078]
[1771173045286,3.34557587,87.45,87.4,25.79086665]
[1771173045884,3.34557587,87.45,87.402,10.3028]
[1771173046092,3.34557587,87.45,87.403,22.4101075]
[1771173046493,10.8827097,87.447,87.403,22.4101075]
[1771173046689,11.43,87.53,87.334,160.3912]
[1771173046690,0.58908827,87.476,87.421,22.40806821]
[1771173047290,3.34557587,87.47,87.421,22.40806821]
[1771173047799,5.10187635,87.47,87.421,22.40806821]
[1771173049903,10.2953,87.467,87.421,22.40806821]
[1771173050200,3.34557587,87.46,87.421,22.40806821]
[1771173050402,39.88621085,87.48,87.431,21.63072313]
[1771173050802,10.294,87.478,87.44,24.97417273]
[1771173051490,13.63807587,87.49,87.44,24.97417273]
[1771173051697,10.2925,87.49,87.45,24.97417273]
[1771173052903,10.2925,87.49,87.45,21.62859686]
[1771173057798,10.2925,87.49,87.45,24.97417273]
[1771173059803,10.2925,87.49,87.45,21.62859686]
[1771173060200,10.2912,87.502,87.461,21.67739518]
[1771173061104,10.2918,87.497,87.461,21.67739518]
[1771173061293,3.34557587,87.5,87.413,21.12737143]
[1771173061294,2.21341047,87.496,87.444,21.67553267]
[1771173061501,2.21341047,87.489,87.444,21.67553267]
[1771173062703,2.23328893,87.488,87.444,21.67553267]
[1771173062900,3.34557587,87.47,87.431,21.67592028]
[1771173063105,3.34557587,87.49,87.431,21.67592028]
[1771173063406,10.2928,87.488,87.451,21.67592028]
[1771173063804,2.23328893,87.493,87.451,21.67592028]
[1771173064001,5.26861595,87.52,87.461,21.8363204]
[1771173064202,3.34557587,87.51,87.461,21.8363204]
[1771173065805,10.2907,87.506,87.461,21.8363204]
[1771173066406,3.3456023,87.51,87.463,21.74847728]
[1771173067005,2.13207659,87.499,87.451,21.74673921]
[1771173067804,10.2915,87.499,87.451,21.74673921]
[1771173068004,10.2915,87.499,87.409,21.12737143]
[1771173068005,3.3456023,87.48,87.438,21.95900542]
[1771173068702,10.2938,87.479,87.438,21.95900542]
[1771173068910,5.07605355,87.47,87.421,21.95732331]
[1771173069505,34.7915614,87.514,87.421,21.95732331]
[1771173069506,1.73045125,87.478,87.421,21.95732331]
[1771173070805,10.2952,87.467,87.423,21.98671344]
[1771173078712,3.3456023,87.47,87.423,21.98671344]
[1771173079823,10.2963,87.458,87.423,21.98671344]
[1771173082222,10.2948,87.471,87.423,21.98671344]
[1771173082621,3.3456023,87.46,87.423,21.98671344]
[1771173083220,10.2957,87.463,87.423,21.98671344]
[1771173083618,3.3456023,87.46,87.423,21.98671344]
[1771173084414,34.80501386,87.514,87.41,13.6474023]
[1771173084415,3.3456023,87.45,87.41,21.75168455]
[1771173084923,10.2975,87.448,87.41,21.75168455]
[1771173085111,3.3456023,87.44,87.41,21.75168455]
[1771173085315,10.2975,87.448,87.41,21.75168455]
[1771173086419,3.3456023,87.44,87.394,21.78535439]
[1771173086619,3.3456023,87.42,87.379,21.78535439]
[1771173087816,13.6463023,87.42,87.379,21.78535439]
[1771173090725,10.3017,87.412,87.379,21.78535439]
[1771173091226,3.3456023,87.42,87.379,21.78535439]
[1771173091428,10.3011,87.417,87.379,21.78535439]
[1771173091818,3.3456023,87.41,87.379,3.54165439]
[1771173092024,10.3023,87.407,87.379,5.439e-05]
[1771173093026,10.3013,87.416,87.379,5.439e-05]
[1771173094130,3.3456023,87.42,87.379,5.439e-05]
[1771173094131,10.3028,87.403,87.379,5.439e-05]
[1771173095134,10.66977163,87.462,87.335,94.46]
[1771173095135,10.3033,87.399,87.366,20.75400523]
[1771173095329,10.3033,87.399,87.351,20.75400523]
[1771173098634,10.3044,87.389,87.351,20.75400523]
[1771173099537,10.3028,87.403,87.361,20.75400523]
[1771173099742,10.3028,87.403,87.371,20.75400523]
[1771173100444,10.3018,87.412,87.371,20.75400523]
[1771173102746,10.3026,87.405,87.371,20.75400523]
[1771173119850,10.3026,87.405,87.325,21.23365756]
[1771173119851,22.42155412,87.393,87.357,22.79354994]
[1771173120062,22.42155412,87.393,87.341,22.79354994]
[1771173120258,10.3077,87.362,87.329,22.79354994]
[1771173120556,22.42155412,87.367,87.329,22.79354994]
[1771173121053,22.42155412,87.377,87.33,26.13915224]
[1771173121252,22.42155412,87.377,87.34,26.13915224]
[1771173121557,22.42155412,87.377,87.34,22.79354994]
[1771173122058,22.42155412,87.377,87.34,26.13915224]
[1771173122258,22.42155412,87.398,87.34,26.13915224]
[1771173122467,22.42155412,87.389,87.34,3.3456023]
[1771173122765,25.76715642,87.37,87.323,22.79354994]
[1771173123361,22.42155412,87.349,87.3,3.3456023]
[1771173123554,22.42155412,87.349,87.211,11.43]
[1771173123555,22.42155412,87.339,87.291,22.79354994]
[1771173123760,25.76715642,87.33,87.291,22.79354994]
[1771173123954,3.3456023,87.32,87.279,22.79354994]
[1771173124461,22.42155412,87.358,87.31,26.13915224]
[1771173124664,22.42155412,87.356,87.32,3.3456023]
[1771173124866,22.42155412,87.356,87.31,26.13915224]
[1771173125964,22.42155412,87.356,87.32,3.35690596]
[1771173126161,10.307,87.367,87.32,3.35690596]
[1771173126363,22.42155412,87.366,87.32,26.1504559]
[1771173127260,22.42155412,87.366,87.32,22.79354994]
[1771173127261,10.3076,87.363,87.32,22.79354994]
[1771173127464,3.35690596,87.37,87.32,22.79354994]
[1771173127465,22.42155412,87.362,87.32,22.79354994]
[1771173127661,22.42155412,87.374,87.32,26.1504559]
[1771173127861,22.42155412,87.372,87.32,26.1504559]
[1771173128458,22.42155412,87.37,87.33,3.35690596]
[1771173129765,22.42155412,87.37,87.331,22.79354994]
[1771173130668,10.3052,87.383,87.34,3.35690596]
[1771173131069,10.3054,87.381,87.331,22.79354994]
[1771173132165,32.72695412,87.381,87.331,22.79354994]
[1771173132970,22.42155412,87.377,87.32,3.35690596]
[1771173133269,22.42155412,87.369,87.32,3.35690596]
[1771173133862,22.42155412,87.369,87.318,22.79354994]
[1771173133863,21.17920748,87.366,87.318,22.79354994]
[1771173134370,21.17920748,87.366,87.32,24.41874041]
[1771173134669,21.17920748,87.366,87.33,3.35690596]
[1771173136771,21.17920748,87.366,87.32,24.41874041]
[1771173137173,13.66240596,87.38,87.331,21.06183445]
[1771173137468,21.17920748,87.379,87.331,21.06183445]
[1771173138367,21.17920748,87.369,87.317,21.06183445]
[1771173138766,3.35690596,87.36,87.317,21.06183445]
[1771173139366,24.53611344,87.36,87.317,21.06183445]
[1771173139770,10.3081,87.358,87.317,21.06183445]
[1771173142074,21.17920748,87.35,87.31,3.35690596]
[1771173142278,3.35690596,87.38,87.321,21.06183445]
[1771173142478,21.17920748,87.382,87.281,34.36]
[1771173142479,21.17920748,87.382,87.341,21.06183445]
[1771173143882,10.3056,87.379,87.341,21.06183445]
[1771173144575,21.17920748,87.382,87.341,21.06183445]
[1771173144782,21.17920748,87.367,87.31,24.41874041]
[1771173145784,10.3079,87.36,87.312,21.06183445]
[1771173146788,10.3079,87.36,87.32,3.35690596]
[1771173149188,10.3079,87.36,87.266,21.23365756]
[1771173149189,34.36,87.402,87.35,3.35690596]
[1771173149492,21.17920748,87.397,87.35,3.35690596]
[1771173150280,21.17920748,87.397,87.341,21.06183445]
[1771173150880,21.17920748,87.393,87.35,3.35690596]
[1771173151188,21.17920748,87.393,87.341,21.06183445]
[1771173151487,21.17920748,87.389,87.34,3.35690596]
[1771173152384,21.17920748,87.384,87.34,3.35690596]
[1771173153883,21.17920748,87.382,87.34,3.35690596]
[1771173154484,21.17920748,87.382,87.281,34.36]
[1771173154485,21.17920748,87.378,87.32,24.41874041]
[1771173155584,34.36,87.378,87.32,24.41874041]
[1771173155784,21.17920748,87.373,87.32,24.41874041]
[1771173156878,21.17920748,87.368,87.32,21.06183445]
[1771173157781,21.17920748,87.358,87.31,3.35690596]
[1771173157988,21.17920748,87.358,87.302,21.06183445]
[1771173158290,21.17920748,87.349,87.302,21.06183445]
[1771173158484,21.17920748,87.347,87.302,21.06183445]
[1771173158688,91.34,87.38,87.286,21.06183445]
[1771173158689,21.17920748,87.337,87.286,21.06183445]
[1771173159789,10.311,87.334,87.286,21.06183445]
[1771173161890,10.311,87.334,87.29,3.35690596]
[1771173162087,10.311,87.334,87.29,24.41874041]
[1771173163391,10.311,87.334,87.29,21.06183445]
[1771173164188,10.311,87.334,87.29,24.41874041]
[1771173165488,10.3119,87.326,87.29,24.41874041]
[1771173165692,10.3119,87.326,87.29,21.06183445]
[1771173165992,33.09025769,87.326,87.28,3.35690596]
[1771173166387,33.09025769,87.326,87.28,25.56855855]
[1771173167588,22.77835769,87.325,87.28,25.56855855]
[1771173167987,10.3121,87.324,87.28,25.56855855]
[1771173169894,22.77835769,87.319,87.27,3.35690596]
[1771173170091,22.77835769,87.319,87.267,22.21165259]
[1771173170294,22.77835769,87.319,87.271,22.21165259]
[1771173170593,10.3114,87.33,87.291,22.21165259]
[1771173173392,10.3123,87.322,87.28,3.35690596]
[1771173173595,10.3123,87.322,87.28,25.56855855]
[1771173173794,10.3133,87.314,87.28,25.56855855]
[1771173174002,10.3133,87.314,87.28,22.21165259]
[1771173175394,10.3123,87.323,87.29,3.35690596]
[1771173176397,10.3123,87.323,87.28,25.56855855]
[1771173177698,10.3131,87.316,87.28,25.56855855]
[1771173178092,22.77835769,87.315,87.27,3.35690596]
[1771173178294,3.35690596,87.33,87.27,3.35690596]
[1771173178295,22.77835769,87.312,87.27,3.35690596]
[1771173178796,22.77835769,87.312,87.267,22.21165259]
[1771173179396,22.77835769,87.312,87.27,3.35690596]
[1771173179796,10.3144,87.305,87.27,3.35690596]
[1771173179996,10.3144,87.305,87.27,25.56855855]
[1771173181994,22.77835769,87.312,87.28,3.35690596]
[1771173182398,22.77835769,87.312,87.27,25.56855855]
[1771173183801,10.3138,87.31,87.27,25.56855855]
[1771173186002,10.3138,87.31,87.27,25.57190819]
[1771173196316,10.3127,87.319,87.281,23.39181269]
[1771173196515,10.3127,87.319,87.29,3.3602556]
[1771173197816,10.3127,87.319,87.281,23.39181269]
[1771173198719,10.3127,87.319,87.234,21.23365756]
[1771173198720,34.36,87.337,87.301,23.39181269]
[1771173199018,23.35685873,87.347,87.301,23.39181269]
[1771173200212,10.3114,87.33,87.301,23.39181269]
[1771173200514,8.35314191,87.366,87.29,3.3602556]
[1771173200515,23.35685873,87.329,87.29,3.3602556]
[1771173200913,23.35685873,87.329,87.29,26.75206829]
[1771173201816,10.3123,87.323,87.29,26.75206829]
[1771173219331,10.3105,87.338,87.301,23.39181269]
[1771173220433,23.35685873,87.363,87.321,23.39181269]
[1771173220834,23.35685873,87.363,87.33,3.3602556]
[1771173221840,10.3081,87.358,87.33,3.3602556]
[1771173223435,23.35685873,87.363,87.33,25.11070864]
[1771173224838,10.3077,87.361,87.33,25.11070864]
[1771173225134,10.3077,87.361,87.33,21.75045304]
[1771173225332,23.44440309,87.347,87.3,3.3602556]
[1771173225740,23.44440309,87.347,87.248,21.23365756]
[1771173225741,23.44440309,87.347,87.29,3.3602556]
[1771173225942,23.44440309,87.339,87.29,3.3602556]
[1771173226731,10.3107,87.336,87.29,3.3602556]
[1771173226938,23.44440309,87.335,87.29,3.3602556]
[1771173227340,23.44440309,87.335,87.291,23.18499508]
[1771173228238,23.44440309,87.335,87.3,3.3602556]
[1771173230141,23.44440309,87.335,87.291,23.18499508]
[1771173233847,34.36,87.36,87.262,95.54]
[1771173233848,10.3098,87.344,87.301,23.18499508]
[1771173235849,10.3088,87.352,87.311,23.18499508]
[1771173236045,10.3088,87.352,87.259,20.6394]
[1771173236046,23.44440309,87.358,87.321,23.18499508]
[1771173236244,23.44440309,87.377,87.321,23.18499508]
[1771173236751,23.44440309,87.367,87.331,23.18499508]
[1771173239251,10.3072,87.366,87.331,23.18499508]
[1771173239849,33.75160309,87.366,87.331,23.18499508]
[1771173240548,23.44440309,87.379,87.341,23.18499508]
[1771173240751,8.34140762,87.39,87.35,26.54525068]
[1771173240950,442.20895078,87.391,87.36,26.54525068]
[1771173242544,23.44440309,87.39,87.3,34.36]
[1771173242848,3.3602556,87.33,87.281,24.42182488]
[1771173243053,34.38,87.328,87.281,24.42182488]
[1771173243250,3.3602556,87.32,87.281,24.42182488]
[1771173243648,3.3602556,87.3,87.25,3.3602556]
[1771173244252,3.3602556,87.3,87.251,24.58366079]
[1771173244449,91.36,87.314,87.27,27.94391639]
[1771173244654,91.36,87.314,87.201,160.6364]
[1771173244655,3.3602556,87.33,87.28,27.94391639]
[1771173245355,3.3602556,87.33,87.28,24.58366079]
[1771173245752,10.3125,87.32,87.28,24.58366079]
[1771173246553,13.6727556,87.32,87.28,24.58366079]
[1771173247560,3.3602556,87.32,87.28,24.58366079]
[1771173248054,3.35982007,87.33,87.28,24.58366079]
[1771173248556,10.3119,87.326,87.28,24.58366079]
[1771173249455,10.3119,87.326,87.28,27.94348086]
[1771173249952,10.3119,87.326,87.28,24.58366079]
[1771173250453,10.3119,87.326,87.28,27.94348086]
[1771173251750,10.3119,87.326,87.291,25.00211247]
[1771173252755,3.35982007,87.33,87.291,25.00211247]
[1771173252961,13.67012007,87.34,87.291,25.00211247]
[1771173254562,3.35982007,87.33,87.291,25.00211247]
[1771173254856,10.3117,87.328,87.291,25.00211247]
[1771173255366,3.35982007,87.32,87.278,24.92243225]
[1771173255761,13.67252007,87.32,87.265,24.92243225]
[1771173256465,3.35982007,87.31,87.265,24.92243225]
[1771173256963,13.67132007,87.33,87.281,24.93824624]
[1771173257958,3.35982007,87.33,87.281,24.93824624]
[1771173258161,3.35982007,87.32,87.27,28.30947037]
[1771173259264,3.35982007,87.31,87.27,24.9496503]
[1771173260058,3.35982007,87.3,87.27,24.9496503]
[1771173261457,10.3143,87.305,87.27,24.9496503]
[1771173263762,10.3143,87.305,87.253,24.99077218]
[1771173263968,3.35982007,87.3,87.253,24.99077218]
[1771173264269,10.3143,87.305,87.253,24.99077218]
[1771173264662,10.3154,87.296,87.253,24.99077218]
[1771173264969,3.35982007,87.29,87.253,24.99077218]
[1771173265863,3.35982007,87.28,87.253,24.99077218]
[1771173266058,10.3165,87.287,87.253,24.99077218]
[1771173269271,10.3154,87.297,87.253,24.99077218]
[1771173271679,10.3154,87.297,87.261,25.11968156]
[1771173271869,10.3143,87.305,87.271,25.20841822]
[1771173274381,10.3152,87.298,87.271,25.20841822]
[1771173276982,10.3141,87.307,87.271,25.20841822]
[1771173277385,10.3141,87.307,87.22,176.4368784]
[1771173277386,3.35982007,87.33,87.281,25.71868404]
[1771173278889,10.3132,87.315,87.281,25.71868404]
[1771173279788,10.3119,87.326,87.281,25.71868404]
[1771173280290,115.14,87.334,87.281,25.71868404]
[1771173280694,10.3128,87.318,87.281,25.71868404]
[1771173286894,10.3119,87.326,87.281,25.71868404]
[1771173287093,8.58621222,87.325,87.281,25.71868404]
[1771173288196,8.58621222,87.324,87.281,25.71868404]
[1771173288395,8.58621222,87.325,87.281,25.71868404]
[1771173288694,8.58621222,87.324,87.281,25.71868404]
[1771173288893,8.58621222,87.325,87.281,25.71868404]
[1771173289094,10.3119,87.326,87.281,25.71868404]
[1771173289095,8.58621222,87.324,87.281,25.71868404]
[1771173289399,8.58621222,87.325,87.281,25.71868404]
[1771173289600,8.58621222,87.324,87.281,25.71868404]
[1771173289800,8.58621222,87.325,87.281,25.71868404]
[1771173289993,8.58621222,87.324,87.281,25.71868404]
[1771173290188,8.58621222,87.325,87.281,25.71868404]
[1771173290400,10.3122,87.323,87.281,25.71868404]
[1771173302903,8.58621222,87.339,87.291,26.37698654]
[1771173303104,8.58621222,87.348,87.311,26.37698654]
[1771173303307,249.49578159,87.39,87.331,26.37698654]
[1771173303511,8.53590138,87.389,87.331,26.37698654]
[1771173303711,8.53590138,87.388,87.331,26.37698654]
[1771173303910,242.17835796,87.39,87.331,26.37698654]
[1771173303911,3.35982007,87.38,87.331,26.37698654]
[1771173304808,10.3061,87.375,87.331,26.37698654]
[1771173312616,10.305,87.384,87.331,26.37698654]
[1771173313018,10.305,87.384,87.341,26.11087593]
[1771173314622,10.3067,87.37,87.328,26.10036743]
[1771173315015,242.17389977,87.39,87.331,26.09857707]
[1771173315821,10.3054,87.381,87.331,26.09857707]
[1771173316524,10.306,87.376,87.331,26.09857707]
[1771173317620,10.307,87.368,87.331,26.09857707]
[1771173320124,10.308,87.359,87.318,26.29924956]
[1771173322927,210.22,87.369,87.321,26.31133124]
[1771173323123,210.82,87.387,87.341,26.31133124]
[1771173324922,10.3048,87.386,87.341,26.31133124]
[1771173331831,242.17389977,87.39,87.341,26.31133124]
[1771173335233,10.3045,87.388,87.341,26.31133124]
[1771173337429,242.17389977,87.39,87.341,26.31133124]
[1771173337430,10.3057,87.378,87.341,26.31133124]
[1771173338028,242.17389977,87.39,87.341,36.62133124]
[1771173338229,242.17389977,87.39,87.342,25.76486091]
[1771173339727,10.3046,87.388,87.342,25.76486091]
[1771173344024,3.35536188,87.38,87.342,25.76486091]
[1771173345432,8.50991059,87.389,87.342,25.76486091]
[1771173345935,10.3052,87.383,87.342,25.76486091]
[1771173349030,18.81511059,87.383,87.342,25.76486091]
[1771173349231,10.3052,87.383,87.342,25.76486091]
[1771173350533,18.81511059,87.383,87.342,25.76486091]
[1771173350729,10.3052,87.383,87.342,25.76486091]
[1771173352039,18.81511059,87.383,87.342,25.76486091]
[1771173352238,10.3052,87.383,87.342,25.76486091]
[1771173352838,18.81511059,87.383,87.342,25.76486091]
[1771173353141,10.3052,87.383,87.342,25.76486091]
[1771173353742,18.81511059,87.383,87.342,25.76486091]
[1771173354044,10.3052,87.383,87.342,25.76486091]
[1771173354637,18.81511059,87.383,87.342,25.76486091]
[1771173354938,10.3052,87.383,87.342,25.76486091]
[1771173361150,238.81853789,87.39,87.35,28.95881326]
[1771173362250,238.81853789,87.39,87.35,25.60345138]
[1771173362849,0.16143787,87.385,87.35,25.60345138]
[1771173363155,0.16143787,87.379,87.35,25.60345138]
[1771173363453,241.48,87.378,87.35,25.60345138]
[1771173363855,0.13831261,87.359,87.311,25.58879861]
[1771173364049,0.13831261,87.358,87.311,25.58879861]
[1771173364445,10.3089,87.351,87.311,25.58879861]
[1771173364746,3.35536188,87.35,87.311,25.58879861]
[1771173365649,3.35536188,87.35,87.277,97.56]
[1771173365650,3.35536188,87.36,87.313,25.58773433]
[1771173365854,0.15785949,87.37,87.321,26.48993529]
[1771173365855,8.51969343,87.369,87.321,26.48993529]
[1771173366059,8.51969343,87.394,87.351,26.48993529]
[1771173366254,8.51969343,87.398,87.351,26.48993529]
[1771173366449,10.6772437,87.413,87.351,9.16233529]
[1771173366450,3.35536188,87.38,87.351,9.16233529]
[1771173366650,3.35536188,87.37,87.321,10.3124]
[1771173367451,10.3059,87.377,87.321,10.3124]
[1771173367655,10.3059,87.377,87.33,3.35536188]
[1771173368449,10.3059,87.377,87.331,23.94063658]
[1771173372458,3.35563686,87.37,87.331,23.94063658]
[1771173372659,19.04462899,87.37,87.331,23.94063658]
[1771173377556,19.17030502,87.36,87.311,25.64555376]
[1771173377867,3.35563686,87.35,87.311,25.64555376]
[1771173382263,10.3089,87.351,87.311,25.64555376]
[1771173382264,26.30162041,87.351,87.311,25.64555376]
[1771173382467,19.34835727,87.35,87.311,25.64555376]
[1771173386474,10.3092,87.349,87.311,25.64555376]
[1771173389273,10.3104,87.338,87.311,25.64555376]
[1771173389982,10.3104,87.338,87.29,13.67163686]
[1771173392181,10.3104,87.338,87.295,25.64555376]
[1771173392383,10.3104,87.338,87.301,25.64555376]
[1771173394790,10.3114,87.33,87.301,25.64555376]
[1771173395386,10.3105,87.338,87.301,25.64555376]
[1771173397886,28.60473765,87.33,87.288,25.64555376]
[1771173398092,25.24910079,87.33,87.288,25.64555376]
[1771173398292,25.24910079,87.33,87.291,25.64555376]
[1771173398492,10.3103,87.339,87.291,25.64555376]
[1771173399291,35.55940079,87.339,87.291,25.64555376]
[1771173399490,10.311,87.334,87.291,25.64555376]
[1771173400790,25.24910079,87.338,87.292,25.64555376]
[1771173403694,25.91701536,87.329,87.292,25.64555376]
[1771173404387,25.91701536,87.358,87.3,3.35563686]
[1771173404588,25.91701536,87.339,87.292,24.51381947]
[1771173405995,36.22731536,87.339,87.294,24.51381947]
[1771173407993,36.22801536,87.334,87.294,24.51381947]
[1771173408304,25.91701536,87.329,87.283,24.51381947]
[1771173408502,25.91701536,87.319,87.271,24.51381947]
[1771173409402,25.91701536,87.309,87.271,24.51381947]
[1771173409702,25.91701536,87.299,87.258,24.51381947]
[1771173410105,25.91701536,87.298,87.258,24.51381947]
[1771173411001,25.91701536,87.298,87.245,24.51381947]
[1771173411504,25.91701536,87.289,87.245,24.51381947]
[1771173413700,10.3158,87.293,87.251,24.51381947]
[1771173417804,10.3163,87.289,87.251,24.51381947]
[1771173418012,25.91701536,87.288,87.251,24.51381947]
[1771173418707,25.91701536,87.286,87.251,24.51381947]
[1771173419609,25.91701536,87.286,87.24,3.35563686]
[1771173419610,36.23411536,87.282,87.231,24.51381947]
[1771173420306,25.91701536,87.277,87.231,24.51381947]
[1771173420509,10.6772437,87.327,87.231,24.51381947]
[1771173420510,29.27265222,87.27,87.231,24.51381947]
[1771173421805,25.91701536,87.267,87.231,24.51381947]
[1771173424313,91.36,87.305,87.231,24.51381947]
[1771173424314,25.91701536,87.275,87.231,24.51381947]
[1771173425413,25.91701536,87.275,87.22,3.35563686]
[1771173425613,25.91701536,87.275,87.22,27.86945633]
[1771173425816,25.91701536,87.273,87.222,24.51381947]
[1771173426212,25.91701536,87.273,87.231,24.51381947]
[1771173426812,25.91701536,87.259,87.21,3.35563686]
[1771173427017,3.35563686,87.27,87.221,24.51381947]
[1771173428107,29.27265222,87.27,87.221,24.51381947]
[1771173428511,25.91701536,87.259,87.221,24.51381947]
[1771173429816,91.36,87.289,87.201,24.51381947]
[1771173429817,3.35563686,87.25,87.201,24.51381947]
[1771173430017,29.27265222,87.25,87.201,24.51381947]
[1771173430814,10.3211,87.248,87.201,24.51381947]
[1771173431411,25.91701536,87.25,87.201,24.51381947]
[1771173431611,13.67763686,87.24,87.201,24.51381947]
[1771173431811,13.67763686,87.24,87.19,3.35563686]
[1771173431812,29.27265222,87.24,87.19,27.86945633]
[1771173432011,10.323,87.232,87.19,24.51381947]
[1771173432412,10.323,87.232,87.19,27.88037901]
[1771173432717,29.2835749,87.24,87.19,27.88037901]
[1771173433318,29.2835749,87.24,87.19,24.51381947]
[1771173433919,10.3232,87.23,87.19,24.51381947]
[1771173434319,10.3241,87.223,87.19,24.51381947]
[1771173434616,29.75661598,87.25,87.201,26.17866484]
[1771173435609,29.75661598,87.24,87.201,26.17866484]
[1771173435813,10.3224,87.237,87.201,26.17866484]
[1771173436816,10.3239,87.224,87.183,26.17866484]
[1771173437020,29.75661598,87.22,87.171,26.17866484]
[1771173437321,3.36655954,87.23,87.181,26.17866484]
[1771173437515,10.3235,87.228,87.181,26.17866484]
[1771173440020,10.3243,87.221,87.181,26.17866484]
[1771173440221,29.75661598,87.22,87.181,26.17866484]
[1771173440623,10.3255,87.211,87.17,3.36655954]
[1771173440921,36.71555644,87.211,87.169,26.17866484]
[1771173441123,26.39005644,87.21,87.169,26.17866484]
[1771173441723,10.3257,87.209,87.169,26.17866484]
[1771173442622,26.39005644,87.223,87.181,26.17866484]
[1771173443124,26.39005644,87.223,87.19,3.36655954]
[1771173443622,26.39005644,87.24,87.191,26.17866484]
[1771173443816,10.3237,87.226,87.191,26.17866484]
[1771173446627,10.3226,87.235,87.201,26.17866484]
[1771173446926,26.39005644,87.252,87.211,26.17866484]
[1771173447820,10.321,87.249,87.211,26.17866484]
[1771173448828,10.3219,87.241,87.211,26.17866484]
[1771173450536,244.24,87.282,87.211,26.17866484]
[1771173450537,10.321,87.249,87.22,3.36655954]
[1771173452232,36.71105644,87.249,87.211,26.17866484]
[1771173457127,10.3216,87.244,87.211,26.17866484]
[1771173458330,26.39005644,87.248,87.211,26.17866484]
[1771173458529,26.39005644,87.248,87.21,3.36655954]
[1771173458931,10.3212,87.247,87.201,26.17866484]
[1771173459531,36.71125644,87.247,87.201,26.17866484]
[1771173463732,10.3218,87.242,87.201,26.17866484]
[1771173464129,26.02748719,87.259,87.201,26.17866484]
[1771173464334,26.02748719,87.259,87.221,26.34778676]
[1771173467435,10.3191,87.265,87.223,26.34778676]
[1771173467636,8.50726011,87.27,87.223,26.34778676]
[1771173467849,10.317,87.283,87.241,26.34778676]
[1771173468141,44.85269762,87.283,87.241,26.34778676]
[1771173468335,26.02748719,87.279,87.241,26.34778676]
[1771173469437,26.02748719,87.279,87.206,91.38]
[1771173469438,26.02748719,87.279,87.243,26.34778676]
[1771173469637,26.02748719,87.288,87.243,26.34778676]
[1771173470635,26.02748719,87.288,87.25,3.36655954]
[1771173470940,26.02748719,87.288,87.25,29.7143463]
[1771173471138,26.02748719,87.3,87.25,29.7143463]
[1771173472535,26.02748719,87.3,87.261,26.34778676]